Cogmind - Beta 17 @@@ ROGUE MODE // 2026.07.13 @ 01:21:02 Player: TheSkyeDoctor Result: Destroyed by Y-72 Warden with Railgun Performance ------------- Evolutions (8) 4000 Regions Visited (20) 4000 Robots Destroyed (76) 380 Value Destroyed (2968) 2968 Prototype IDs (50) 1000 Alien Tech Used (0) 0 Bonus (1777) 1777 TOTAL SCORE: 14125 Bonus ------- High Alert Combat Kills 25 Entered DSFs 500 Aligned with FarCom 300 Met Warlord at Base 500 MAIN.C Attacked Warlord 500 Friendly Fire -48 Cogmind --------- Core Integrity 0/1450 Matter 283/300 Energy 100/100 System Corruption 3% Temperature Cool (9) Movement Walking (120) Location -2/Research Parts ------- > --- POWER (2) -------- (None) > --- PROPULSION (6) --- Centrium Leg > --- UTILITY (11) ----- Improved Signal Interpreter Advanced Melee Analysis Suite Core Analyzer > --- WEAPON (4) ------- (None) > --- INVENTORY (5) ---- High-capacity Matter Pod (200) Long-range Terrain Scanner Peak State ------------ > --- POWER ------------ Light Quantum Reactor Light Quantum Reactor > --- PROPULSION ------- Field Propulsion Array Q-thruster Electron Diverter Electron Diverter Electron Diverter > --- UTILITY ---------- Advanced Cryofiber Web Coolant Network Improved Signal Interpreter Long-range Terrain Scanner Advanced Terrain Scan Processor Advanced Melee Analysis Suite Core Analyzer Advanced Transmission Jammer Reaction Control System Long-range Tractor Beam > --- WEAPON ----------- Enhanced Nova Cannon Fusion Bomb Launcher Advanced Datajack > --- INVENTORY -------- Light Quantum Reactor Field Propulsion Drive High-capacity Matter Pod Long-range Terrain Scanner Compact HERF Cannon [Rating: 158] Favorites ----------- Power Enhanced Nuclear Core Engine Ion Engine Power Core Enhanced Nuclear Core Reactor Light Antimatter Reactor Propulsion Armored Huge Wheel Treads Light Treads Leg Centrium Leg Wheel Armored Huge Wheel Flight Unit Electron Diverter Utility Advanced Terrain Scan Processor Device Improved Terrain Scanner Storage Medium Storage Unit Processor Advanced Terrain Scan Processor Protection Layered Light Armor Plating Weapon Spread Laser Energy Gun Spread Laser Energy Cannon Compact Ion Cannon Ballistic Gun Enhanced Autogun Ballistic Cannon Hardcell Cannon Launcher Heavy Missile Launcher Slashing Weapon Makeshift Axe Piercing Weapon Vortex Lance Special Melee Weapon Advanced Datajack Build | -11 -10 -10 -10 -9 -8 -7 -6 -6 -6 -5 -5 -5 -5 -5 -5 -4 -4 -4 -3 -2 ------- Run | Yrd Mat Min Exi Min Mat Fac Fac Low Low Fac Was Fac Upp Upp War Pro Fac DSF Res Res Slots Evolved 16 | . . . . . 4 2 2 . . 2 . . . . . . 2 . 2 2 Power 1 | . . . . . . 1 . . . . . . . . . . . . . . Propulsion 4 | . . . . . . . 2 . . . . . . . . . 2 . . . Utility 9 | . . . . . 2 1 . . . 2 . . . . . . . . 2 2 Weapon 2 | . . . . . 2 . . . . . . . . . . . . . . . Parts Attached 127 | 7 4 1 . . 10 13 3 3 . 3 1 8 10 4 2 6 . 3 33 16 Power 20 | 1 . . . . 2 1 . . . . . 1 1 2 . . . 1 6 5 Engine 4 | 1 . . . . 1 . . . . . . 1 . 1 . . . . . . Core 3 | . . . . . 1 1 . . . . . . . 1 . . . . . . Reactor 13 | . . . . . . . . . . . . . 1 . . . . 1 6 5 Propulsion 34 | 2 2 1 . . 1 3 1 . . . . 2 3 . . 2 . . 11 6 Treads 5 | 2 2 1 . . . . . . . . . . . . . . . . . . Leg 1 | . . . . . . . . . . . . . . . . . . . . 1 Wheel 4 | . . . . . 1 1 1 . . . . 1 . . . . . . . . Hover . | . . . . . . . . . . . . . . . . . . . . . Flight 24 | . . . . . . 2 . . . . . 1 3 . . 2 . . 11 5 Utility 39 | 2 . . . . 5 4 1 1 . 2 1 5 2 1 . 4 . . 9 2 Device 21 | 1 . . . . 1 2 . . . 1 . 2 1 1 . 3 . . 7 2 Storage 2 | 1 . . . . 1 . . . . . . . . . . . . . . . Processor 13 | . . . . . 3 1 1 . . 1 1 2 1 . . 1 . . 2 . Hackware . | . . . . . . . . . . . . . . . . . . . . . Protection 3 | . . . . . . 1 . 1 . . . 1 . . . . . . . . Artifact . | . . . . . . . . . . . . . . . . . . . . . Weapon 34 | 2 2 . . . 2 5 1 2 . 1 . . 4 1 2 . . 2 7 3 Energy Gun 9 | 1 2 . . . . 3 . . . . . . 3 . . . . . . . Energy Cannon 6 | . . . . . . . 1 1 . . . . . . . . . 1 2 1 Ballistic Gun 5 | 1 . . . . 1 . . . . . . . 1 1 . . . . 1 . Ballistic Cannon 4 | . . . . . . . . . . 1 . . . . . . . 1 2 . Launcher 4 | . . . . . 1 1 . . . . . . . . . . . . 2 . Special Weapon . | . . . . . . . . . . . . . . . . . . . . . Impact Weapon . | . . . . . . . . . . . . . . . . . . . . . Slashing Weapon 3 | . . . . . . . . 1 . . . . . . 1 . . . . 1 Piercing Weapon 2 | . . . . . . 1 . . . . . . . . 1 . . . . . Special Melee Weapon 1 | . . . . . . . . . . . . . . . . . . . . 1 Unidentified Prototypes 8 | . . . . . 2 2 1 . . . . . . . 1 . . . 2 . Corrupted Parts 2 | . . . . . . . . . . . . . . . . . . . 2 . System Corruption 4 | . . . . . . . . . . . . . . . . . . . 4 . Parts Lost 72 | . . . . . . 1 . . . . 4 10 6 2 2 5 . 1 18 23 Power 13 | . . . . . . . . . . . . 1 2 1 . 2 . . 3 4 Propulsion 22 | . . . . . . . . . . . 1 2 1 . . 2 . . 7 9 Utility 21 | . . . . . . 1 . . . . 1 5 1 1 . . . . 5 7 Weapon 16 | . . . . . . . . . . . 2 2 2 . 2 1 . 1 3 3 Highest Loss Streak 23 | . . . . . . 1 . . . . 4 9 6 2 4 3 . 1 13 23 To Critical Strikes 3 | . . . . . . . . . . . 1 . 1 . . . . . . 1 Average Backups 6 | 2 5 8 8 8 7 8 9 9 9 7 6 2 4 3 4 2 2 3 4 4 Power . | . 1 1 1 1 . . 1 1 1 1 1 . . . . . . . . . Propulsion 1 | . 1 1 1 1 1 2 2 3 3 3 2 1 2 2 2 . . . . . Utility 2 | . 2 3 4 4 3 3 3 4 4 2 1 . 1 1 2 1 2 2 1 1 Weapon . | . . 1 1 1 . 1 1 . . . 1 . . . . . . 1 3 1 Tool/Special . | . . . . . . . . . . . . . . . . . . . . . Unused Backups 13 | . . 2 1 . 1 . 2 1 . . 3 . . . . . . . 1 2 Power 1 | . . . . . . . 1 . . . . . . . . . . . . . Propulsion 3 | . . 1 . . 1 . . . . . 1 . . . . . . . . . Utility 7 | . . . 1 . . . 1 1 . . 1 . . . . . . . 1 2 Weapon 1 | . . 1 . . . . . . . . . . . . . . . . . . Tool/Special 1 | . . . . . . . . . . . 1 . . . . . . . . . Average Slot Usage (%) 83 | . 100 100 100 100 90 89 86 85 86 87 75 58 80 79 76 73 63 61 66 70 Engine 3 | . 14 14 14 14 3 . . . . . . 4 . 2 4 2 . . . . Core 5 | . . . . . 5 14 13 13 13 11 8 4 . 2 5 2 . . . . Reactor 1 | . . . . . . . . . . . . . 4 . . . . 1 6 6 Treads 5 | . 28 28 28 28 7 . . . . . . . . . . . . . . . Wheel 4 | . . . . . 5 6 13 13 13 11 9 4 . . . . . . . . Flight 6 | . . . . . . . . . . . . 1 17 17 17 17 15 15 21 18 Device 10 | . 14 14 14 14 11 14 6 6 6 11 8 6 1 4 . 1 10 10 12 21 Storage 5 | . 14 14 14 14 9 7 6 6 6 5 3 . . . . . . . . . Processor 16 | . . . . . 15 15 13 13 13 16 19 22 34 35 35 32 26 26 20 16 Protection 1 | . . . . . . . 6 6 6 5 3 1 . . . . . . . . Energy Gun 10 | . 16 28 28 28 18 12 13 10 . . . . 15 5 . . . . . . Energy Cannon 1 | . . . . . . . 5 7 13 11 8 4 . . . . . . . 1 Ballistic Gun 3 | . 12 . . . 7 7 . . . . . . 4 8 5 2 . . . . Launcher 2 | . . . . . 7 6 . 5 6 2 . 4 . . . . . . . 2 Peak Build Rating 158 | 7 10 10 10 10 33 52 61 62 62 72 71 53 77 70 71 73 55 62 126 158 Average Rating 54 | 5 7 10 10 10 26 48 60 61 62 70 59 44 69 65 64 57 55 56 85 124 On Entrance 44 | . 7 10 10 10 10 33 50 61 62 62 71 36 39 54 63 71 55 55 60 121 Avg Prop Armor Cover (%) . | . . . . . . . . . . . . . . . . . . . . . Naked Turns . | . . . . . . . . . . . . . . . . . . . . . Heaviest Build 64 | 14 17 17 17 17 31 53 48 53 53 57 57 41 31 27 21 21 11 20 43 64 Greatest Support 56 | 40 40 40 40 40 40 28 56 56 56 56 56 38 26 26 26 26 21 21 45 48 Greatest Overweight (x) 4 | . . . . . 1 1 . . . 1 1 1 1 1 . . . . 4 1 Average Overweight (x) . | . . . . . . 1 . . . . . . . . . . . . . . Largest Inventory Capacity 10 | 8 8 8 8 8 10 10 10 10 10 10 10 5 5 5 5 5 5 5 5 5 Average Capacity 7 | 7 8 8 8 8 9 10 10 10 10 10 7 5 5 5 5 5 5 5 5 5 Most Carried 10 | 3 8 8 8 8 10 10 10 10 9 9 8 3 5 4 4 3 2 5 5 5 Average Carried 6 | 2 5 7 7 8 8 9 9 9 9 7 6 2 4 3 4 2 2 4 4 4 Final Capacity 10 | 8 8 8 8 8 10 10 10 10 10 10 5 5 5 5 5 5 5 5 5 5 Final Carried 10 | 3 8 8 8 8 10 10 10 9 9 8 4 2 3 4 4 2 2 5 5 2 Class Distribution -------------------- 30% | Mutant 30% | Skirmisher 9% | Assassin 7% | Derelict-Mutant 5% | Derelict-Gunner 4% | Sprinter 4% | Gunner 3% | Derelict-Gladiator Dominant Class ---------------- Mutant | -10/Materials Mutant | -10/Mines Mutant | -10/Exiles Mutant | -9/Mines Skirmisher | -8/Materials Skirmisher | -7/Factory Assassin | -6/Factory Skirmisher | -6/Lower Caves Skirmisher | -6/Lower Caves Assassin | -5/Factory Assassin | -5/Waste Mutant | -5/Factory Gunner | -5/Upper Caves Derelict-Gunner | -5/Upper Caves Derelict-Gladiator | -5/Warlord Derelict-Gladiator | -4/Proximity Caves Derelict-Gladiator | -4/Factory Derelict-Gladiator | -4/DSF Derelict-Mutant | -3/Research Mutant | -2/Research Resources | -11 -10 -10 -10 -9 -8 -7 -6 -6 -6 -5 -5 -5 -5 -5 -5 -4 -4 -4 -3 -2 ----------- Run | Yrd Mat Min Exi Min Mat Fac Fac Low Low Fac Was Fac Upp Upp War Pro Fac DSF Res Res Matter Collected 3718 | 296 270 10 . . . 406 50 491 3 . 77 . 211 267 . 123 . 2 686 826 Remotely 801 | . . . . . . . . . . . . . . . . . . . . 801 Salvage Created 2359 | 331 453 28 . 10 . 495 50 137 . . . 4 65 113 . 96 . . 279 298 Parts 139 | 31 31 1 . 1 . 21 7 1 . . . 6 1 6 . 3 . . 19 11 Haulers Intercepted 2 | . 2 . . . . . . . . . . . . . . . . . . . Recyclers Shooed . | . . . . . . . . . . . . . . . . . . . . . Parts Field Recycled . | . . . . . . . . . . . . . . . . . . . . . Retrieved Matter . | . . . . . . . . . . . . . . . . . . . . . Parts Self-Destructed 12 | . . . . . . . . 2 . . . . 5 2 . 3 . . . . Prevented . | . . . . . . . . . . . . . . . . . . . . . Parts Restored . | . . . . . . . . . . . . . . . . . . . . . Kills | -11 -10 -10 -10 -9 -8 -7 -6 -6 -6 -5 -5 -5 -5 -5 -5 -4 -4 -4 -3 -2 ------- Run | Yrd Mat Min Exi Min Mat Fac Fac Low Low Fac Was Fac Upp Upp War Pro Fac DSF Res Res Combat Hostiles Destroyed 50 | . 9 1 . 1 1 11 1 6 . . . . . 3 . 2 . . 10 5 Melee 3 | . . . . . . . 1 . . . . . . . . 2 . . . . Guns 17 | . 8 1 . 1 . 4 . 1 . . . . . 2 . . . . . . Cannons 8 | . . . . . . . . . . . . . . . . . . . 7 1 AOE 21 | . 1 . . . 1 7 . 5 . . . . . . . . . . 3 4 Classes Destroyed 13 | 3 4 . . . 1 5 . . . . . . . . . . . . . . Worker 3 | 1 1 . . . . 1 . . . . . . . . . . . . . . Builder 4 | . 1 . . . . 1 . . . . . 2 . . . . . . . . Tunneler 10 | 9 1 . . . . . . . . . . . . . . . . . . . Hauler 2 | . 2 . . . . . . . . . . . . . . . . . . . Recycler 4 | 1 . . . . . 3 . . . . . . . . . . . . . . Mechanic 1 | . . . . . . 1 . . . . . . . . . . . . . . Operator 1 | . . . . . . 1 . . . . . . . . . . . . . . Watcher 1 | . . . . . . 1 . . . . . . . . . . . . . . Swarmer 20 | . 3 . . 1 . 6 . 2 . . . . . 2 . . . . 6 . Grunt 11 | . 6 1 . . . . . 2 . . . . . . . . . . . 2 Sentry 2 | . . . . . . 1 . 1 . . . . . . . . . . . . Hunter 4 | . . . . . 1 . . . . . . . . 1 . . . . . 2 Programmer 13 | . . . . . . 4 1 1 . . . . . . . 2 . . 4 1 Best Kill Streak 9 | 2 9 1 . 1 1 8 1 5 . . . 2 . 2 . 2 . . 3 5 Combat Bots Only 5 | . 5 1 . 1 1 5 1 5 . . . . . 2 . 2 . . 3 5 Max Kills in Single Turn 6 | 2 3 1 . 1 1 6 1 2 . . . 2 . 1 . 1 . . 3 2 Gunslinging . | . . . . . . . . . . . . . . . . . . . . . Exploded 3 | . 1 . . . 1 3 . 2 . . . . . . . . . . 3 1 Melee 1 | . . . . . . . 1 . . . . . . . . 1 . . . . Uniques/NPCs Destroyed . | . . . . . . . . . . . . . . . . . . . . . Combat | -11 -10 -10 -10 -9 -8 -7 -6 -6 -6 -5 -5 -5 -5 -5 -5 -4 -4 -4 -3 -2 -------- Run | Yrd Mat Min Exi Min Mat Fac Fac Low Low Fac Was Fac Upp Upp War Pro Fac DSF Res Res Hostile Shots Fired 747 | . 51 2 . 3 6 52 10 76 . . 5 110 37 26 24 39 . 1 129 176 Missed 323 | . 24 1 . 1 3 12 1 26 . . 1 50 14 16 17 22 . . 57 78 Hits 424 | . 27 1 . 2 3 40 9 50 . . 4 60 23 10 7 17 . 1 72 98 Melee 12 | . . . . . . . . . . . 4 . . . . . . . . 8 Projectile 412 | . 27 1 . 2 3 40 9 50 . . . 60 23 10 7 17 . 1 72 90 AOE 7 | . . . . . . . . . . . . . . . . . . . . 7 Critical Strikes 16 | . . . . . . . . 1 . . 3 3 1 . . . . . 3 5 Part Disruptions 1 | . . . . . . . . . . . . 1 . . . . . . . . Damage Taken 9438 | 16 385 12 . 16 54 911 132 553 . . 181 1086 336 175 179 333 . 66 1855 3148 Core 2792 | . 58 . . . . 135 16 67 . . . 314 34 31 42 170 . 11 457 1457 Absorbed by Shields 148 | . . . . . . . . . . . . 99 . 30 . . . . 19 . Regen/Repaired (Parts) 46 | . . . . . . . . . . . . . . . 46 . . . . . Core Remaining (%) 81 | 100 . . . 76 100 80 . . 90 . . . . . . 40 . 99 64 . Volleys Fired 213 | 26 36 2 . 2 4 18 3 9 . . 5 7 9 6 . . . . 63 23 Largest 4 | 2 2 2 . 2 4 4 3 4 . . 3 2 2 3 . . . . 2 2 Hottest 264 | 60 130 130 . 130 185 213 225 264 . . 216 114 90 133 . . . . 88 172 Shots Fired 382 | 52 72 4 . 4 16 56 9 19 . . 15 8 16 17 . . . . 65 29 Gun 240 | 52 72 4 . 4 12 46 6 8 . . . . 16 17 . . . . 3 . Cannon 105 | . . . . . . . 3 4 . . 15 7 . . . . . . 57 19 Launcher 37 | . . . . . 4 10 . 7 . . . 1 . . . . . . 5 10 Special . | . . . . . . . . . . . . . . . . . . . . . Kinetic 161 | 26 34 . . . 4 16 . . . . 5 . 6 11 . . . . 59 . Thermal 86 | . 4 4 . 4 8 28 6 8 . . 5 . 5 6 . . . . . 8 Explosive 37 | . . . . . 4 10 . 7 . . . 1 . . . . . . 5 10 Electromagnetic 98 | 26 34 . . . . 2 3 4 . . 5 7 5 . . . . . 1 11 Robot Hit Streak 12 | 8 12 3 . 4 9 4 4 8 . . 4 4 5 4 . . . . 5 7 Robot Miss Streak 6 | 2 4 4 . 5 2 3 4 6 . . 2 1 6 2 . . . . 5 2 Penetration Max . | . . . . . . . . . . . . . . . . . . . . . Secondary Targets 3 | . 1 . . 1 . 1 . . . . . . . . . . . . . . Max Gunslinging Chain 1 | . 1 . . 1 . 1 . . . . . . . . . . . . . . Shots Hit Robots 234 | 33 45 4 . 4 15 35 6 14 . . 9 6 5 10 . 7 . . 23 18 Core Hits 148 | 15 28 4 . 3 6 31 1 14 . . 2 3 1 4 . 2 . . 16 18 Critical Kills . | . . . . . . . . . . . . . . . . . . . . . Critical Parts Destroyed . | . . . . . . . . . . . . . . . . . . . . . Critical Strikes 5 | . . . . . . . . . . . . . . 2 . 2 . . 1 . Burn 2 | . . . . . . . . . . . . . . 2 . . . . . . Sunder 3 | . . . . . . . . . . . . . . . . 2 . . 1 . Melee Attacks 59 | . . . . . . . 20 . . 5 . . . . . 7 2 . 22 3 Impact . | . . . . . . . . . . . . . . . . . . . . . Slashing 11 | . . . . . . . . . . 5 . . . . . 1 2 . . 3 Piercing 20 | . . . . . . . 20 . . . . . . . . . . . . . Entropic 28 | . . . . . . . . . . . . . . . . 6 . . 22 . Sneak Attacks . | . . . . . . . . . . . . . . . . . . . . . Combat Hostiles . | . . . . . . . . . . . . . . . . . . . . . Follow-up Attacks 1 | . . . . . . . . . . . . . . . . 1 . . . . Damage Inflicted 8881 | 467 643 37 . 35 280 1981 99 711 . . 219 184 129 188 . 563 . . 1688 1657 Guns 2109 | 377 439 37 . 35 159 594 66 85 . . . . 129 188 . . . . . . Cannons 1423 | . . . . . . . . 36 . . 219 30 . . . . . . 733 405 Explosions 4392 | 90 200 . . . 121 1387 . 590 . . . 154 . . . . . . 638 1212 Melee 913 | . . . . . . . 33 . . . . . . . . 563 . . 317 . Ramming 44 | . 4 . . . . . . . . . . . . . . . . . . 40 Kinetic 1406 | 103 168 . . . 34 133 . . . . 74 . 45 123 . . . . 726 . Thermal 2351 | 90 155 37 . 35 125 1276 54 97 . . 137 . 65 65 . . . . . 215 Explosive 3252 | . . . . . 121 537 . 590 . . . 154 . . . . . . 638 1212 Electromagnetic 915 | 274 316 . . . . 35 12 24 . . 8 30 19 . . . . . 7 190 Impact . | . . . . . . . . . . . . . . . . . . . . . Slashing 40 | . . . . . . . . . . . . . . . . 40 . . . . Piercing 33 | . . . . . . . 33 . . . . . . . . . . . . . Entropic 840 | . . . . . . . . . . . . . . . . 523 . . 317 . Highest Corruption 17 | . . . . . . . 1 2 2 . . 8 8 8 8 4 . . 17 3 Average Corruption 6 | . . . . . . . 1 1 2 . . 5 8 8 8 3 . . 10 2 Corruption Purged . | . . . . . . . . . . . . . . . . . . . . . Corruption Blocked . | . . . . . . . . . . . . . . . . . . . . . Effects 115 | . . . . . . . 3 13 1 . . 4 29 16 1 2 . . 44 2 Message Errors 22 | . . . . . . . . 1 . . . 2 5 4 . 1 . . 9 . Matter Fused 30 | . . . . . . . 1 4 . . . . 9 2 . 1 . . 12 1 Heat Flow Errors 14 | . . . . . . . . 1 1 . . . 4 1 . . . . 7 . Energy Discharges 14 | . . . . . . . 1 2 . . . . 3 4 . . . . 4 . Parts Rejected 1 | . . . . . . . . . . . . . . . . . . . 1 . Parts Fused 3 | . . . . . . . . . . . . . 1 . . . . . 2 . Data Loss (minor) 12 | . . . . . . . 1 2 . . . 1 2 3 1 . . . 1 1 Data Loss (major) 7 | . . . . . . . . 2 . . . 1 2 1 . . . . 1 . Misfires 3 | . . . . . . . . . . . . . 2 1 . . . . . . Alerts 2 | . . . . . . . . 1 . . . . . . . . . . 1 . Misdirections 5 | . . . . . . . . . . . . . . . . . . . 5 . Weapon Failures 2 | . . . . . . . . . . . . . 1 . . . . . 1 . Overload Shots . | . . . . . . . . . . . . . . . . . . . . . Overflow Damage 598 | 7 . . . . . 251 . 38 . . . 22 . . . 77 . . 203 . Projectiles 59 | . . . . . . . . . . . . . . . . . . . 59 . Explosions 427 | 7 . . . . . 251 . 38 . . . 22 . . . . . . 109 . Melee 112 | . . . . . . . . . . . . . . . . 77 . . 35 . Knockbacks 9 | . . . . . . . . . . . . . . . . . . . 8 1 Impact 1 | . . . . . . . . . . . . . . . . . . . . 1 Kinetic 7 | . . . . . . . . . . . . . . . . . . . 7 . Secondary 1 | . . . . . . . . . . . . . . . . . . . 1 . Self-Inflicted Damage 302 | 16 56 . . . . 108 . . . . . . . . . . . . 81 41 Shots 9 | 1 2 . . . . 4 . . . . . . . . . . . . 1 1 Rammed 6 | . 1 . . . . . . . . . . . . . . . . . . 5 Targets Rammed 6 | . 1 . . . . . . . . . . . . . . . . . . 5 Kicked . | . . . . . . . . . . . . . . . . . . . . . Crushed . | . . . . . . . . . . . . . . . . . . . . . Highest Temperature 641 | 52 179 144 . 138 433 641 477 451 111 . 318 3 216 147 . . . . 205 . Average Temperature 120 | 20 55 76 . 71 216 170 232 209 63 . 150 2 55 59 . . . . 71 . Received Heat Transfer 597 | . 147 6 . . . 6 . 180 . . . . . 42 27 . . . 45 144 Effects 20 | . . . . . 1 8 3 8 . . . . . . . . . . . . Shutdowns 6 | . . . . . . 3 1 2 . . . . . . . . . . . . Energy Bleed 3 | . . . . . . 1 1 1 . . . . . . . . . . . . Interference 3 | . . . . . . . . 3 . . . . . . . . . . . . Matter Decay 2 | . . . . . 1 1 . . . . . . . . . . . . . . Short Circuit 1 | . . . . . . 1 . . . . . . . . . . . . . . Damage (minor) 3 | . . . . . . 1 1 1 . . . . . . . . . . . . Damage (major) 1 | . . . . . . . . 1 . . . . . . . . . . . . Damage (core) 1 | . . . . . . 1 . . . . . . . . . . . . . . Siege Activations . | . . . . . . . . . . . . . . . . . . . . . Martial Activations . | . . . . . . . . . . . . . . . . . . . . . Shielding Activations . | . . . . . . . . . . . . . . . . . . . . . Robots Disrupted . | . . . . . . . . . . . . . . . . . . . . . Combat Hostiles . | . . . . . . . . . . . . . . . . . . . . . Robots Corrupted . | . . . . . . . . . . . . . . . . . . . . . Combat Hostiles . | . . . . . . . . . . . . . . . . . . . . . Parts Fried 1 | 1 . . . . . . . . . . . . . . . . . . . . Impact Corruptions . | . . . . . . . . . . . . . . . . . . . . . Robots Melted 1 | . . . . . . . . . . . . . . 1 . . . . . . Combat Hostiles 1 | . . . . . . . . . . . . . . 1 . . . . . . Parts Melted 7 | . . . . . . 5 . . . . . . . 2 . . . . . . Heat Transferred 3052 | 50 240 45 . 45 155 1385 100 162 . . 185 . 150 350 . . . . . 185 Parts Sabotaged . | . . . . . . . . . . . . . . . . . . . . . Parts Stolen . | . . . . . . . . . . . . . . . . . . . . . Parts Stripped . | . . . . . . . . . . . . . . . . . . . . . Power Chain Reactions 4 | 2 2 . . . . . . . . . . . . . . . . . . . Alert | -11 -10 -10 -10 -9 -8 -7 -6 -6 -6 -5 -5 -5 -5 -5 -5 -4 -4 -4 -3 -2 ------- Run | Yrd Mat Min Exi Min Mat Fac Fac Low Low Fac Was Fac Upp Upp War Pro Fac DSF Res Res Maximum Alert Level 2 | . 1 . . . . 2 1 . . . . . . . . . . . 1 2 Low Security (%) 90 | 100 93 100 . 100 100 87 58 . . 100 100 100 . . . . 100 100 98 80 Level 1 4 | . 6 . . . . . 41 . . . . . . . . . . . 1 3 Level 2 4 | . . . . . . 12 . . . . . . . . . . . . . 15 Level 3 . | . . . . . . . . . . . . . . . . . . . . . Level 4 . | . . . . . . . . . . . . . . . . . . . . . Level 5 . | . . . . . . . . . . . . . . . . . . . . . High Security . | . . . . . . . . . . . . . . . . . . . . . Max Security . | . . . . . . . . . . . . . . . . . . . . . Peak Influence 642 | 10 218 70 . 55 35 625 310 . . 6 . 52 . . . . 21 . 205 642 Initial 296 | . . 60 . . 21 . 296 . . . . . . . . . 21 . . 114 Average 76 | . 80 9 . 5 7 111 183 . . . . 3 . . . . 12 . 39 181 Influence Increases 3763 | 55 315 50 . 65 50 834 65 130 . 10 . 99 50 85 30 85 4 . 722 1114 Destroy 0b10 Robot/C 1000 | . 180 20 . 20 20 220 20 120 . . . . . 60 . 40 . . 200 100 Destroy 0b10 Robot/NC 135 | 55 25 . . . . 40 . . . . . 10 5 . . . . . . . Destroy Leader 216 | . 44 . . . 10 62 10 10 . . . . . 10 . . . . 40 30 Successful Hack 65 | . . . . . 5 12 24 . . . . . . . . . . . 24 . Disable Machine 450 | . 30 . . . . 360 . . . . . 15 . . . . . . 30 15 Anti-Garrison Action 150 | . . . . . . . . . . . . . . . . . . . . 150 Destroy Structure 742 | . 6 . . . 15 125 11 . . 10 . 14 . . . . 4 . 188 369 Partial Spotted 30 | . . . . . . . . . . . . . . . . . . . 30 . Lose Combat Pursuer 975 | . 30 30 . 45 . 15 . . . . . 60 45 15 30 45 . . 210 450 Influence Decreases 3127 | 55 160 205 . 10 105 227 597 205 . 10 . 57 63 94 20 80 39 . 517 683 Entered New Map 646 | . . 95 . . 34 . 311 29 . . . . 16 6 20 30 14 . . 91 Time Decay 1895 | 55 160 110 . 10 71 217 286 176 . 10 . 18 37 68 . 40 25 . 250 362 Lost Part 469 | . . . . . . 10 . . . . . 39 10 20 . 10 . . 150 230 Purge Threat 117 | . . . . . . . . . . . . . . . . . . . 117 . Squads Dispatched 18 | . 2 . . . . 6 1 . . . . 2 . . . . . . 6 1 Investigation 2 | . 1 . . . . 1 . . . . . . . . . . . . . . Extermination 9 | . . . . . . 3 1 . . . . 1 . . . . . . 4 . Reinforcement 7 | . 1 . . . . 2 . . . . . 1 . . . . . . 2 1 Assault . | . . . . . . . . . . . . . . . . . . . . . Garrison . | . . . . . . . . . . . . . . . . . . . . . Intercept . | . . . . . . . . . . . . . . . . . . . . . Searches Triggered . | . . . . . . . . . . . . . . . . . . . . . Construction Impeded 1 | . . . . . . 1 . . . . . . . . . . . . . . Haulers Reinforced . | . . . . . . . . . . . . . . . . . . . . . Active Scanning Responses . | . . . . . . . . . . . . . . . . . . . . . Cargo Convoy Interrupts . | . . . . . . . . . . . . . . . . . . . . . Stealth | -11 -10 -10 -10 -9 -8 -7 -6 -6 -6 -5 -5 -5 -5 -5 -5 -4 -4 -4 -3 -2 --------- Run | Yrd Mat Min Exi Min Mat Fac Fac Low Low Fac Was Fac Upp Upp War Pro Fac DSF Res Res Distress Signals 16 | . 1 . . . . 1 . . . . . 1 . . . . . . 3 10 Communications Jammed 5 | . . . . . . . . . . . . . . . . . . . 5 . Distress Signals 5 | . . . . . . . . . . . . . . . . . . . 5 . Times Spotted 194 | . 15 5 . 4 1 12 1 7 . . 6 17 5 9 22 5 . 1 39 45 Peak Tracking Total 22 | . 3 2 . 4 1 4 1 5 . . 6 11 5 7 22 5 . 1 11 19 Tactical Retreats 25 | . 1 1 . 1 . 1 . . . . . 1 1 1 1 2 . . 4 11 Traps | -11 -10 -10 -10 -9 -8 -7 -6 -6 -6 -5 -5 -5 -5 -5 -5 -4 -4 -4 -3 -2 ------- Run | Yrd Mat Min Exi Min Mat Fac Fac Low Low Fac Was Fac Upp Upp War Pro Fac DSF Res Res Traps Triggered 8 | . 1 . . . . 4 . . . 1 . . . . 1 . . . 1 . Indirectly . | . . . . . . . . . . . . . . . . . . . . . Trap Hack Attempts . | . . . . . . . . . . . . . . . . . . . . . Triggered . | . . . . . . . . . . . . . . . . . . . . . Disarmed . | . . . . . . . . . . . . . . . . . . . . . Reprogrammed . | . . . . . . . . . . . . . . . . . . . . . Reused . | . . . . . . . . . . . . . . . . . . . . . Traps Extracted . | . . . . . . . . . . . . . . . . . . . . . Installed . | . . . . . . . . . . . . . . . . . . . . . Triggered . | . . . . . . . . . . . . . . . . . . . . . Machines | -11 -10 -10 -10 -9 -8 -7 -6 -6 -6 -5 -5 -5 -5 -5 -5 -4 -4 -4 -3 -2 ---------- Run | Yrd Mat Min Exi Min Mat Fac Fac Low Low Fac Was Fac Upp Upp War Pro Fac DSF Res Res Machines Disabled 31 | . 2 . . . . 24 . . . . . 1 . . . . . . 2 2 Max in Single Turn 24 | . 1 . . . . 24 . . . . . 1 . . . . . . 1 1 Garrison Access 3 | . . . . . . 1 . . . . . . . . . . . . 1 1 Machines Repaired . | . . . . . . . . . . . . . . . . . . . . . Machines Dismantled . | . . . . . . . . . . . . . . . . . . . . . Machines Sabotaged . | . . . . . . . . . . . . . . . . . . . . . Overloaded Fab Kills . | . . . . . . . . . . . . . . . . . . . . . Hacking | -11 -10 -10 -10 -9 -8 -7 -6 -6 -6 -5 -5 -5 -5 -5 -5 -4 -4 -4 -3 -2 --------- Run | Yrd Mat Min Exi Min Mat Fac Fac Low Low Fac Was Fac Upp Upp War Pro Fac DSF Res Res Machines Accessed 34 | . 2 . 1 . 1 4 1 2 . . . 1 1 . 13 . 1 . 7 . Terminals 10 | . 2 . . . 1 2 1 . . . . . . . . . 1 . 3 . Fabricators . | . . . . . . . . . . . . . . . . . . . . . Repair Stations 1 | . . . . . . . . . . . . . . . . . . . 1 . Recycling Units . | . . . . . . . . . . . . . . . . . . . . . Scanalyzers 4 | . . . . . . 1 . . . . . 1 . . . . . . 2 . Garrison Access 2 | . . . . . . 1 . . . . . . . . . . . . 1 . Total Hacks 65 | . 7 . 1 . 2 6 2 4 . . . 1 1 . 26 . 1 . 14 . Successful 44 | . 2 . 1 . 1 2 1 4 . . . . 1 . 26 . 1 . 5 . Failed 21 | . 5 . . . 1 4 1 . . . . 1 . . . . . . 9 . Catastrophic 6 | . . . . . . 2 . . . . . 1 . . . . . . 3 . Database Lockouts . | . . . . . . . . . . . . . . . . . . . . . Manual 19 | . 4 . 1 . 2 4 1 . . . . . . . . . . . 7 . Terminals 23 | . 7 . . . 2 4 2 . . . . . . . . . 1 . 7 . Fabricators . | . . . . . . . . . . . . . . . . . . . . . Repair Stations 1 | . . . . . . . . . . . . . . . . . . . 1 . Recycling Units . | . . . . . . . . . . . . . . . . . . . . . Scanalyzers 7 | . . . . . . 1 . . . . . 1 . . . . . . 5 . Garrison Access 2 | . . . . . . 1 . . . . . . . . . . . . 1 . Terminal Hacks 36 | . 1 . 1 . . . 1 4 . . . . 1 . 26 . 1 . 1 . Record 19 | . . . . . . . 1 3 . . . . . . 15 . . . . . Prototype ID Bank 10 | . 1 . . . . . . . . . . . . . 9 . . . . . Open Door 4 | . . . . . . . . 1 . . . . 1 . 2 . . . . . Open DSF 1 | . . . . . . . . . . . . . . . . . 1 . . . Unreport Threat 1 | . . . . . . . . . . . . . . . . . . . 1 . Proto ID Catalog 1 | . . . 1 . . . . . . . . . . . . . . . . . Fabricator Hacks . | . . . . . . . . . . . . . . . . . . . . . Repair Station Hacks . | . . . . . . . . . . . . . . . . . . . . . Recycling Unit Hacks . | . . . . . . . . . . . . . . . . . . . . . Scanalyzer 4 | . . . . . . 1 . . . . . . . . . . . . 3 . Retrieve Study 4 | . . . . . . 1 . . . . . . . . . . . . 3 . Garrison Access Hacks 2 | . . . . . . 1 . . . . . . . . . . . . 1 . Seal Access 2 | . . . . . . 1 . . . . . . . . . . . . 1 . Unauthorized Hacks 2 | . 1 . . . 1 . . . . . . . . . . . . . . . Terminals 2 | . 1 . . . 1 . . . . . . . . . . . . . . . Botnet 2 | . 1 . . . 1 . . . . . . . . . . . . . . . Fabricators . | . . . . . . . . . . . . . . . . . . . . . Repair Stations . | . . . . . . . . . . . . . . . . . . . . . Recycling Units . | . . . . . . . . . . . . . . . . . . . . . Scanalyzers . | . . . . . . . . . . . . . . . . . . . . . Garrison Access . | . . . . . . . . . . . . . . . . . . . . . Data Cores Recovered . | . . . . . . . . . . . . . . . . . . . . . Used . | . . . . . . . . . . . . . . . . . . . . . Hacking Detections 12 | . 2 . . . 1 2 1 . . . . 1 . . . . . . 5 . Full Trace Events 2 | . 1 . . . . 1 . . . . . . . . . . . . . . Feedback Events . | . . . . . . . . . . . . . . . . . . . . . Feedback Blocked . | . . . . . . . . . . . . . . . . . . . . . Robot Schematics Acquired . | . . . . . . . . . . . . . . . . . . . . . Robots Built . | . . . . . . . . . . . . . . . . . . . . . Authchips . | . . . . . . . . . . . . . . . . . . . . . Time . | . . . . . . . . . . . . . . . . . . . . . Total Robot Build Rating . | . . . . . . . . . . . . . . . . . . . . . Part Schematics Acquired . | . . . . . . . . . . . . . . . . . . . . . Parts Built . | . . . . . . . . . . . . . . . . . . . . . Authchips . | . . . . . . . . . . . . . . . . . . . . . Time . | . . . . . . . . . . . . . . . . . . . . . Total Part Build Rating . | . . . . . . . . . . . . . . . . . . . . . Part Studies Acquired 4 | . . . . . . 1 . . . . . . . . . . . . 3 . Parts Repaired . | . . . . . . . . . . . . . . . . . . . . . Time . | . . . . . . . . . . . . . . . . . . . . . Parts Recycled . | . . . . . . . . . . . . . . . . . . . . . Recycled Matter . | . . . . . . . . . . . . . . . . . . . . . Retrieved Matter . | . . . . . . . . . . . . . . . . . . . . . Retrieved Components . | . . . . . . . . . . . . . . . . . . . . . Parts Scanalyzed . | . . . . . . . . . . . . . . . . . . . . . Part Schematics Acquired . | . . . . . . . . . . . . . . . . . . . . . Parts Damaged . | . . . . . . . . . . . . . . . . . . . . . Bothacking | -11 -10 -10 -10 -9 -8 -7 -6 -6 -6 -5 -5 -5 -5 -5 -5 -4 -4 -4 -3 -2 ------------ Run | Yrd Mat Min Exi Min Mat Fac Fac Low Low Fac Was Fac Upp Upp War Pro Fac DSF Res Res Used RIF Installer . | . . . . . . . . . . . . . . . . . . . . . Robots Hacked . | . . . . . . . . . . . . . . . . . . . . . Non-combat . | . . . . . . . . . . . . . . . . . . . . . Combat . | . . . . . . . . . . . . . . . . . . . . . Robot Hacks Applied . | . . . . . . . . . . . . . . . . . . . . . Relay Couplers Released 1 | . . . . . . . . . . . . . . . . . . . . 1 Machine Destruction 1 | . . . . . . . . . . . . . . . . . . . . 1 Fabnet Peak Effective % . | . . . . . . . . . . . . . . . . . . . . . Robots Rewired . | . . . . . . . . . . . . . . . . . . . . . Allies Hacked . | . . . . . . . . . . . . . . . . . . . . . Hacks Repelled . | . . . . . . . . . . . . . . . . . . . . . Allies | -11 -10 -10 -10 -9 -8 -7 -6 -6 -6 -5 -5 -5 -5 -5 -5 -4 -4 -4 -3 -2 -------- Run | Yrd Mat Min Exi Min Mat Fac Fac Low Low Fac Was Fac Upp Upp War Pro Fac DSF Res Res Total Allies . | . . . . . . . . . . . . . . . . . . . . . Largest Group . | . . . . . . . . . . . . . . . . . . . . . Highest-Rated Group . | . . . . . . . . . . . . . . . . . . . . . Highest-Rated Ally . | . . . . . . . . . . . . . . . . . . . . . Total Orders . | . . . . . . . . . . . . . . . . . . . . . Ally Attacks . | . . . . . . . . . . . . . . . . . . . . . Total Damage . | . . . . . . . . . . . . . . . . . . . . . Kills . | . . . . . . . . . . . . . . . . . . . . . Allies Corrupted . | . . . . . . . . . . . . . . . . . . . . . Allies Melted . | . . . . . . . . . . . . . . . . . . . . . Intel | -11 -10 -10 -10 -9 -8 -7 -6 -6 -6 -5 -5 -5 -5 -5 -5 -4 -4 -4 -3 -2 ------- Run | Yrd Mat Min Exi Min Mat Fac Fac Low Low Fac Was Fac Upp Upp War Pro Fac DSF Res Res Active Infowar (turns) 10108 | 46 483 824 367 179 315 1904 624 943 243 88 130 452 862 458 305 180 63 38 891 713 Terrain 4886 | . . . . . 310 1904 624 943 243 88 77 . . . . . . . . 697 Seismic 1982 | 46 483 824 367 179 83 . . . . . . . . . . . . . . . Decoding 3083 | . . . . . . . . . . 87 130 452 862 458 305 180 63 38 508 . Cloaking 1349 | . . . . . . 1349 . . . . . . . . . . . . . . Jamming 1094 | . . . . . . . . . . . . . . . . . . . 383 711 Robot Analysis Total . | . . . . . . . . . . . . . . . . . . . . . Derelict Logs Recovered 5 | . . . . . . . . 2 1 . . . 1 . . 1 . . . . Drone Launches . | . . . . . . . . . . . . . . . . . . . . . Drone Recoveries . | . . . . . . . . . . . . . . . . . . . . . Decoded 0b10 Intel 80 | . . . . . . . . . . 6 7 32 . . . . 5 3 27 . Items 80 | . . . . . . . . . . 6 7 32 . . . . 5 3 27 . Exploration | -11 -10 -10 -10 -9 -8 -7 -6 -6 -6 -5 -5 -5 -5 -5 -5 -4 -4 -4 -3 -2 ------------- Run | Yrd Mat Min Exi Min Mat Fac Fac Low Low Fac Was Fac Upp Upp War Pro Fac DSF Res Res Turns Passed 10940 | 459 483 824 367 179 315 1904 624 956 243 88 130 452 862 458 305 180 63 38 1178 832 Spaces Moved 11800 | 236 229 509 229 105 218 1147 462 959 270 73 116 463 936 604 806 390 118 72 2343 1515 Core 102 | 3 . . . . . . . . . . . . . . . . . . . 99 Treads 1369 | 233 229 509 229 105 64 . . . . . . . . . . . . . . . Legs 7 | . . . . . . . . . . . . . . . . . . . . 7 Wheels 3521 | . . . . . 154 1147 462 959 270 73 116 340 . . . . . . . . Hover . | . . . . . . . . . . . . . . . . . . . . . Flight 6801 | . . . . . . . . . . . . 123 936 604 806 390 118 72 2343 1409 Fastest Speed 21 | 50 160 160 160 160 115 105 90 90 90 90 90 32 32 37 37 37 42 42 21 21 Average Speed 74 | 158 160 160 160 160 128 108 90 90 90 99 97 85 86 60 37 40 42 42 29 44 Slowest Speed 315 | 160 160 160 160 160 160 115 90 90 90 105 105 105 117 117 37 42 42 42 315 120 Overloaded Moves . | . . . . . . . . . . . . . . . . . . . . . Propulsion Burnouts . | . . . . . . . . . . . . . . . . . . . . . Robots Hopped 55 | . . . . . . . . . . . . 3 2 . . . . . 49 1 Potential Cave-ins 10 | . . . . . . . . . . . . . . . . . . . 10 . Cave-ins Triggered 1 | . . . . . . . . . . . . . . . . . . . 1 . Exploration Rate (%) 44 | 7 35 87 61 22 20 27 11 97 26 2 72 12 86 88 93 67 3 41 41 33 Regions Visited 20 Branch Regions 9 Pre-discovered Areas 2 | . . . . . . . . . . . . . . . 2 . . . . . Known Exits Taken 7 | . . . . . . . . . . . . 1 1 1 1 1 1 . 1 . Unknown Exits Taken 10 | 1 1 1 1 1 1 1 1 1 1 . . . . . . . . . . . Scrap Searched 16 | . . 1 . . . . . 8 . . . . 3 2 . 2 . . . . Spaces Dug 59 | . . . . . . . 13 . . 5 . . . . . . 2 . 39 . Terrain Destroyed 508 | 5 4 . . . 16 132 13 51 . 5 . 6 . . . . 2 . 114 160 Melee 36 | . . . . . . . 13 . . 5 . . . . . . 2 . 16 . Projectile 34 | . . . . . . . . . . . . . . . . . . . 33 1 AOE 438 | 5 4 . . . 16 132 . 51 . . . 6 . . . . . . 65 159 Terrain Rammed . | . . . . . . . . . . . . . . . . . . . . . Walls Destroyed . | . . . . . . . . . . . . . . . . . . . . . Machines Disabled . | . . . . . . . . . . . . . . . . . . . . . Actions | -11 -10 -10 -10 -9 -8 -7 -6 -6 -6 -5 -5 -5 -5 -5 -5 -4 -4 -4 -3 -2 --------- Run | Yrd Mat Min Exi Min Mat Fac Fac Low Low Fac Was Fac Upp Upp War Pro Fac DSF Res Res Total 13473 | 271 281 516 230 112 246 1775 634 1036 269 84 121 504 966 683 811 404 127 79 2694 1630 Wait 1154 | . 2 . . 6 . 551 139 55 . . . 25 6 69 4 . 8 . 239 50 Move 11684 | 235 228 508 228 104 217 1146 461 958 269 73 115 456 931 603 805 389 117 71 2257 1513 Hop 42 | . . . . . . . . . . . . 3 2 . . . . . 36 1 Pick Up 53 | 3 5 2 1 . 7 10 5 3 . 2 . 1 3 1 . . . 2 5 3 Fast Attach 86 | 7 2 . . . 1 6 . 1 . . . 7 7 4 2 3 . 3 31 12 Attach 38 | . . . . . 4 6 1 1 . 2 1 4 3 . . 3 . . 9 4 Detach 27 | . 1 . . . 2 4 . . . . . 1 1 . . 3 . 2 11 2 Swap 29 | . 2 1 . . 5 4 2 3 . 1 . . 2 . . . . . 5 4 Drop 62 | . 4 3 1 . 6 14 3 6 . 1 . . 2 . . . . 1 11 10 Fire 213 | 26 36 2 . 2 4 18 3 9 . . 5 7 9 6 . . . . 63 23 Melee 58 | . . . . . . . 20 . . 5 . . . . . 6 2 . 22 3 Ram 5 | . . . . . . . . . . . . . . . . . . . . 5 Kick . | . . . . . . . . . . . . . . . . . . . . . Crush 1 | . 1 . . . . . . . . . . . . . . . . . . . Escape Stasis 21 | . . . . . . 16 . . . . . . . . . . . . 5 . Rewire . | . . . . . . . . . . . . . . . . . . . . . Trap . | . . . . . . . . . . . . . . . . . . . . . Miscellaneous . | . . . . . . . . . . . . . . . . . . . . . Route ------- -11/Scrapyard -10/Materials (discovered 2 exits: [*Mat] / [*Min]) -10/Mines (discovered 2 exits: [*Mat] / *Exi) -10/Exiles -9/Mines -8/Materials -7/Factory -6/Factory -6/Lower Caves -6/Lower Caves -5/Factory (discovered 3 exits: Fac / Upp x2) -5/Waste -5/Factory -5/Upper Caves -5/Upper Caves -5/Warlord -4/Proximity Caves -4/Factory -4/DSF -3/Research (discovered 2 exits: *Res / Tes) -2/Research (discovered 1 exit: Qua) History --------- Turn | Location | Event 13 | -11/Scrapyard | Discovered new exit (range 16) 460 | -11/Scrapyard | Entered Materials 461 | -10/Materials | Build established: Mutant 575 | -10/Materials | Discovered new exit (range 13) 848 | -10/Materials | Discovered new exit (range 16) 943 | -10/Materials | Entered Mines 1087 | -10/Mines | Assembled infested the area 1456 | -10/Mines | YI-UF0 nonchalantly dropped a Grenade Launcher on the ground 1566 | -10/Mines | Discovered new exit (range 16) 1759 | -10/Mines | Deemed a non-threat by the Exiles lab entrance 1760 | -10/Mines | Discovered new exit (range 5) 1767 | -10/Mines | Entered Exiles 1806 | -10/Exiles | Met 8R-AWN 1833 | -10/Exiles | Met EX-HEX 1884 | -10/Exiles | Met EX-BIN 1902 | -10/Exiles | Aligned with FarCom system 1903 | -10/Exiles | Given EX-Vault access code 1945 | -10/Exiles | Opened EX-Vault 1957 | -10/Exiles | Found Cloak of Protection 1990 | -10/Exiles | Warned to stay clear of 0b10 Research branches 2043 | -10/Exiles | Met EX-DEC 2111 | -10/Exiles | Discovered new exit (range 14) 2134 | -10/Exiles | Left Exiles lab with Cloak of Protection 2134 | -10/Exiles | Entered Mines 2295 | -9/Mines | Discovered new exit (range 9) 2313 | -9/Mines | Entered Materials 2313 | -8/Materials | Evolved 4 slots: Utility x2, Weapon x2 2574 | -8/Materials | Discovered new exit (range 10) 2620 | -8/Materials | Build established: Skirmisher 2628 | -8/Materials | Entered Factory 2628 | -7/Factory | Evolved 2 slots: Power x1, Utility x1 4518 | -7/Factory | Discovered new exit (range 14) 4532 | -7/Factory | Entered another Factory area 4532 | -6/Factory | Evolved 2 slots: Propulsion x2 4741 | -6/Factory | Build established: Assassin 5135 | -6/Factory | Discovered new exit (range 13) 5156 | -6/Factory | Entered Lower Caves 5178 | -6/Lower Caves | Attracted the attention of an 0b10 checkpoint 5337 | -6/Lower Caves | Learned 8 Factory zone layouts 5404 | -6/Lower Caves | Entered an active Warlord outpost 5404 | -6/Lower Caves | Learned Research security intel 5457 | -6/Lower Caves | Build established: Skirmisher 5989 | -6/Lower Caves | Encountered a Warlord checkpoint 6058 | -6/Lower Caves | Discovered new exit (range 11) 6112 | -6/Lower Caves | Entered another Lower Caves area 6166 | -6/Lower Caves | Discovered new exit (range 10) 6256 | -6/Lower Caves | Encountered a Warlord checkpoint 6259 | -6/Lower Caves | Learned Factory terminal intel 6355 | -6/Lower Caves | Entered Factory 6355 | -5/Factory | Evolved 2 slots: Utility x2 6356 | -5/Factory | Identified exit to Upper Caves 6357 | -5/Factory | Identified exit to Factory 6358 | -5/Factory | Loaded intel: 26 terminal locations 6443 | -5/Factory | Sucked down chute 6443 | -5/Factory | Entered Waste 6478 | -5/Waste | Spotted C-40 Crusher 6505 | -5/Waste | Spotted C-40 Crusher 6511 | -5/Waste | Spotted C-40 Crusher 6513 | -5/Waste | Spotted C-40 Crusher 6520 | -5/Waste | Crushed by Compactor (1 part destroyed, 2 dropped) 6523 | -5/Waste | Crushed by Compactor (0 parts destroyed, 1 dropped) 6527 | -5/Waste | Spotted C-40 Crusher 6536 | -5/Waste | Spotted C-40 Crusher 6536 | -5/Waste | Crushed by Compactor (1 part destroyed) 6546 | -5/Waste | Crushed by Compactor (0 parts destroyed, 1 dropped) 6559 | -5/Waste | Discovered new exit (range 16) 6572 | -5/Waste | Identified exit to Factory 6573 | -5/Waste | Entered Factory 6577 | -5/Factory | Lost 4 parts (1n1u2w) 6841 | -5/Factory | Build established: Mutant 7008 | -5/Factory | Lost 9 parts (1p2n4u2w) 7011 | -5/Factory | Discovered exit to Upper Caves (range 5) 7025 | -5/Factory | Entered Upper Caves 7115 | -5/Upper Caves | Discovered new exit (range 15) 7178 | -5/Upper Caves | Identified exit to Upper Caves 7423 | -5/Upper Caves | Build established: Gunner 7460 | -5/Upper Caves | Encountered a Warlord checkpoint 7584 | -5/Upper Caves | Learned Factory non-interactive machine intel 7887 | -5/Upper Caves | Entered another Upper Caves area 7909 | -5/Upper Caves | Lost 6 parts (2p1n1u2w) 7999 | -5/Upper Caves | Encountered a Warlord checkpoint 8093 | -5/Upper Caves | Attracted the attention of an 0b10 checkpoint 8328 | -5/Upper Caves | Attracted the attention of an 0b10 base 8343 | -5/Upper Caves | Discovered new exit (range 5) 8344 | -5/Upper Caves | Identified exit to Warlord 8345 | -5/Upper Caves | Entered Warlord 8360 | -5/Warlord | System corruption cleaned by Quarantine Array 8383 | -5/Warlord | Learned location of Armory (-4) 8383 | -5/Warlord | Learned 4 Testing zone layouts 8383 | -5/Warlord | Learned 4 Command zone layouts 8384 | -5/Warlord | Learned Factory garrison access intel 8384 | -5/Warlord | Learned Armory recycling unit intel 8384 | -5/Warlord | Learned Research terminal intel 8386 | -5/Warlord | Lost 4 parts (1p1u2w) 8475 | -5/Warlord | Met Warlord 8500 | -5/Warlord | Warlord's base attacked by MAIN.C 8529 | -5/Warlord | Found Prototype Piercing Weapon 8529 | -5/Warlord | Identified Vortex Lance 8623 | -5/Warlord | Opened side exit 8647 | -5/Warlord | Discovered new exit (range 9) 8650 | -5/Warlord | Identified exit to Proximity Caves 8650 | -5/Warlord | Entered Proximity Caves 8687 | -4/Proximity Caves | Ambushed by research squad 8758 | -4/Proximity Caves | Core integrity fell below 50% 8789 | -4/Proximity Caves | Lost 3 parts (2p1w) 8823 | -4/Proximity Caves | Discovered exit to Factory (range 16) 8830 | -4/Proximity Caves | Entered Factory 8830 | -4/Factory | Evolved 2 slots: Propulsion x2 8831 | -4/Factory | Loaded intel: 189 non-interactive machine locations 8832 | -4/Factory | Loaded intel: 4 garrison access locations 8841 | -4/Factory | Build established: Derelict-Gladiator 8893 | -4/Factory | Identified exit to DSF 8893 | -4/Factory | Entered DSF 8916 | -4/DSF | Discovered new exit (range 16) 8928 | -4/DSF | Additional patrols routed to DSF 8929 | -4/DSF | Identified exit to Research 8931 | -4/DSF | Entered Research 8931 | -3/Research | Evolved 2 slots: Utility x2 8932 | -3/Research | Identified exit to Testing 8934 | -3/Research | Loaded intel: 24 terminal locations 9064 | -3/Research | Crushed by falling debris 9189 | -3/Research | Build established: Derelict-Mutant 9465 | -3/Research | System corruption reached 10% 9492 | -3/Research | Lost 13 parts (2p4n4u3w) 10001 | -3/Research | Found Fusion Bomb Launcher 10105 | -3/Research | Discovered new exit (range 16) 10108 | -3/Research | Identified exit to Research 10109 | -3/Research | Entered another Research area 10109 | -2/Research | Warlord forces began assault on 0b10 10109 | -2/Research | Evolved 2 slots: Utility x2 10110 | -2/Research | Identified exit to Quarantine 10219 | -2/Research | Research machine network offline 10266 | -2/Research | Spotted B-90 Cyclops 10320 | -2/Research | Lost 3 allies 10498 | -2/Research | Spotted Striker 10691 | -2/Research | Borebot progress halted 10798 | -2/Research | Spotted Executioner 10798 | -2/Research | Spotted Executioner 10806 | -2/Research | P-80 Master assimilated allied M7-QWB(i) 10809 | -2/Research | Spotted Striker 10810 | -2/Research | P-80 Master assimilated allied 9D-4N3(i) 10820 | -2/Research | P-80 Master assimilated allied F7-Y6Y(i) 10850 | -2/Research | Core integrity fell below 50% 10862 | -2/Research | Borebot progress halted 10871 | -2/Research | Spotted Striker 10881 | -2/Research | Spotted Striker 10882 | -2/Research | Spotted Executioner 10891 | -2/Research | Lost 13 allies 10901 | -2/Research | Core integrity fell below 20% 10910 | -2/Research | Lost 23 parts (4p9n7u3w) 10941 | -2/Research | Destroyed by Y-72 Warden with Railgun Last Messages --------------- payload. 10877_ B-74 Champion unfolds itself. 10877_ G-73 Enforcer unfolds itself. 10877_ Nuclear Pulse Thruster destroyed. 10879_ Electron Diverter destroyed. 10879_ Adv. Terrain Scan Processor destroyed. 10879_ Slug penetrates B-74 Champion. 10879_ Slug penetrates G-73 Enforcer. 10879_ G-73 Enforcer knocked back. 10880_ Slammed into B-74 Champion. 10882_ Penetrated by Slug. 10883_ System corrupted: Component data lost. 10884_ Penetrated by Slug. 10893_ Slug penetrates Wall. 10894_ Slammed into H-88 Terminator. 10896_ Penetrated by Slug. 10896_ Slug penetrates Wall. 10899_ Slug penetrates Striker. 10913_ System corrupted: Matter fused (-7). 10932_ Acquired Centrium Leg. Map ----- +----------------------------------------------------+ | ??????????????????????????????????????????? | | ??????????????????????????????????????????? | | ??????????????????????????????????????????? | | ??????????????????????????????????????????? | | ??????????????????????????????????????????? | | ??????????????????????????????????????????? | | ??????????????????????????????????????????? | | ??????????????????????????????????????????? | | ??????????????????????????????????????????? | | ??????????????????????????????????????????? | | ??????????????????????????????????????????? | | ??????????????????????????????????????????? | | ??????????????????????????????????????????? | | ??????????????????????????????????????????? | | ??????????????????????????????????????????? | | ??????????????????????###########?????????? | | ??????????????????????# #?????????? | | ???????#??????????????# #?????????? | | ???????# ?????????????# """" #?????????? | | ???????# ???###??????# """" #?????????? | | ??????## #??# ??????# """" #?????????? | | ??????? ### ??????# """" #?????????? | | ???????? = #?????# #?????????? | | ?????????? #?????# K #?????????? | | ????????????# ###########K#####?????????? | | ????????????# Y @ #??????????? | | ????????????# #??????????? | | ????????????# #??????????? | | ????????????# #??????????? | | ????????????# ##########+##+#??????????? | | ????????????# #????????????????????????? | | ?????######## ########?????????????????? | | ? #?????????????????? | | #?????????????????? | | #?????????????????? | | #?????????????????? | | ################# #?????????????????? | | #???????????????# #????????##???????? | | #???????????????# #?????? ????????? | | #???????????????# #???? ?????????? | | #???????????????# #?? """???????????? | | #???????????????# # ""S""??????????? | | #???????????????+ + "" ""??????????? | | #???????????????# # #???????? | | #####???????????# #?? #???????? | | ##T #+########### #???? #???????? | | #??????####???????? | | #?????????????????? | | #?????????????????? | | #?????????????????? | +----------------------------------------------------+ Best States ------------- Heat Dissipation 139 Energy Generation 45 Energy Capacity 580 Matter Stores 300 Matter Capacity 300 Sight Range 16 Terrain Scan Range 24 Terrain Scan Density 410 Jamming Range 16 Cloak Strength 5 Base Temperature (-) 200 Armor Coverage 225 Resistance: TH 30 Resistance: EX 50 Evasion (%) 74 Targeting Accuracy 8 Melee Accuracy 8 Core Analysis 6 Recoil Reduction 2 Energy Filtering 30 Item Schematics ----------------- None Robot Schematics ------------------ None Fabricated ------------ Nothing Repaired ---------- Nothing Studied --------- Arm. Huge Wheel | -7/Factory | Hacked Lgt. Antimatter Reactor | -3/Research | Hacked Q-thruster | -3/Research | Hacked Xenon Bombardment Thruster | -3/Research | Hacked Alien Tech Used ----------------- None Achievements -------------- None Challenges ------------ None Game ------ Seed LargeThiefGreatsword Manual? 0 Play Time 01:40:21 Cumulative 120.2 hours Start 2026.07.12 @ 23:30:08 End 2026.07.13 @ 01:21:02 Sessions 3 Manual Loads 0 Difficulty Rogue Special Mode None Game No. 255 Rogue 255 Adventurer 0 Explorer 0 Win Type - Total 0 Types 0/0/0/0/0/0/0/0/0/0 Lore% 52 Gallery% 52 Achievement% 41 Wizard Run 0 Options --------- Layout 1 ASCII 0 Keyboard 1 Movement Arrows Keybinds 0 Fullscreen 2 Font 24/Smallcaps Map View 50x35 Zoom Use 0% Tactical HUD 1 Map Filters NONE Filters NONE Steam 1 RUN: bb41cb38-cb78-4b69-9db7-b0366da5c31a